[Event "Titled Tuesday Blitz April 18 Early 2023"]
[White "Vivas Zamora, Fabian Ernesto"]
[Black "brm72"]
[WhiteFideId "3902480"]
[WhiteElo "2262"]
[BlackElo "2648"]
[Result "1-0"]
[Round "06"]
[TimeControl "180+2"]
[Date "2023.04.18"]
[WhiteClock "0:01:29"]
[BlackClock "0:01:10"]

1. e4 {[%clk 0:02:57]}  c6 {[%clk 0:02:57]} 2. Nf3 {[%clk 0:02:56]}  d5 {[%clk 0:02:57]} 3. Nc3 {[%clk 0:02:57]}  dxe4 {[%clk 0:02:58]} 4. Nxe4 {[%clk 0:02:58]}  Nf6 {[%clk 0:02:58]} 5. Qe2 {[%clk 0:02:58]}  Nxe4 {[%clk 0:02:58]} 6. Qxe4 {[%clk 0:02:59]}  Nd7 {[%clk 0:02:59]} 7. Bc4 {[%clk 0:03:00]}  Nf6 {[%clk 0:02:59]} 8. Ne5 {[%clk 0:03:00]}  e6 {[%clk 0:03:00]} 9. Qe2 {[%clk 0:03:01]}  b5 {[%clk 0:03:01]} 10. Bd3 {[%clk 0:03:01]}  Qc7 {[%clk 0:03:01]} 11. a4 {[%clk 0:02:59]}  Bd6 {[%clk 0:02:19]} 12. Nxc6 {[%clk 0:02:57]}  b4 {[%clk 0:02:12]} 13. Nd4 {[%clk 0:02:54]}  a6 {[%clk 0:02:12]} 14. Nf5 {[%clk 0:02:53]}  Be5 {[%clk 0:01:54]} 15. Nxg7+ {[%clk 0:02:46]}  Kf8 {[%clk 0:01:54]} 16. Nh5 {[%clk 0:02:45]}  Bb7 {[%clk 0:01:52]} 17. Nxf6 {[%clk 0:02:37]}  Bxf6 {[%clk 0:01:53]} 18. Be4 {[%clk 0:02:31]}  Rg8 {[%clk 0:01:41]} 19. O-O {[%clk 0:02:01]}  Rc8 {[%clk 0:01:34]} 20. d3 {[%clk 0:01:30]}  Bxe4 {[%clk 0:01:14]} 21. Qxe4 {[%clk 0:01:31]}  Qxc2 {[%clk 0:01:13]} 22. Bh6+ {[%clk 0:01:30]}  Ke8 {[%clk 0:01:10]} 23. Rac1 {[%clk 0:01:29]} 1-0


[Site "https://www.chess.com"]

[Event "Titled Tuesday Blitz April 18 Early 2023"]
[White "Koutsin, Sergey"]
[Black "Sreyas Payyappat"]
[WhiteFideId "14101483"]
[BlackFideId "46674969"]
[WhiteElo "2381"]
[BlackElo "2083"]
[Result "1-0"]
[Round "06"]
[TimeControl "180+2"]
[Date "2023.04.18"]
[WhiteClock "0:00:09"]
[BlackClock "0:00:07"]

1. d4 {[%clk 0:03:00]}  Nf6 {[%clk 0:02:58]} 2. c4 {[%clk 0:03:00]}  c5 {[%clk 0:02:57]} 3. d5 {[%clk 0:03:00]}  e6 {[%clk 0:02:57]} 4. Nc3 {[%clk 0:03:00]}  exd5 {[%clk 0:02:58]} 5. cxd5 {[%clk 0:03:00]}  d6 {[%clk 0:02:59]} 6. e4 {[%clk 0:03:01]}  g6 {[%clk 0:02:57]} 7. Nf3 {[%clk 0:03:01]}  Bg7 {[%clk 0:02:57]} 8. Nd2 {[%clk 0:03:01]}  O-O {[%clk 0:02:55]} 9. Be2 {[%clk 0:03:02]}  Re8 {[%clk 0:02:54]} 10. O-O {[%clk 0:03:02]}  a6 {[%clk 0:02:47]} 11. a4 {[%clk 0:03:02]}  Nbd7 {[%clk 0:02:45]} 12. h3 {[%clk 0:03:03]}  Rb8 {[%clk 0:02:40]} 13. a5 {[%clk 0:03:02]}  b5 {[%clk 0:02:27]} 14. axb6 {[%clk 0:03:02]}  Qxb6 {[%clk 0:02:25]} 15. Ra3 {[%clk 0:02:58]}  h6 {[%clk 0:02:08]} 16. Kh1 {[%clk 0:02:58]}  g5 {[%clk 0:02:06]} 17. Nc4 {[%clk 0:02:55]}  Qc7 {[%clk 0:02:05]} 18. f4 {[%clk 0:02:55]}  gxf4 {[%clk 0:02:02]} 19. Bxf4 {[%clk 0:02:54]}  Ne5 {[%clk 0:02:00]} 20. Bxe5 {[%clk 0:02:51]}  dxe5 {[%clk 0:02:01]} 21. Qe1 {[%clk 0:02:18]}  Rb4 {[%clk 0:01:51]} 22. Qh4 {[%clk 0:02:16]}  Qe7 {[%clk 0:01:37]} 23. Qg3 {[%clk 0:02:07]}  Kh8 {[%clk 0:01:26]} 24. Raa1 {[%clk 0:02:06]}  Rb8 {[%clk 0:00:16]} 25. Rf2 {[%clk 0:02:04]}  Bd7 {[%clk 0:00:16]} 26. Raf1 {[%clk 0:01:30]}  Bb5 {[%clk 0:00:16]} 27. b3 {[%clk 0:01:30]}  Bxc4 {[%clk 0:00:16]} 28. Bxc4 {[%clk 0:01:30]}  a5 {[%clk 0:00:16]} 29. Rf5 {[%clk 0:01:24]}  Rb6 {[%clk 0:00:15]} 30. Qf3 {[%clk 0:01:23]}  Reb8 {[%clk 0:00:13]} 31. d6 {[%clk 0:01:06]}  Rxd6 {[%clk 0:00:13]} 32. Nd5 {[%clk 0:01:05]}  Nxd5 {[%clk 0:00:12]} 33. Rxf7 {[%clk 0:01:05]}  Rf6 {[%clk 0:00:11]} 34. Rxe7 {[%clk 0:00:39]}  Rxf3 {[%clk 0:00:11]} 35. exd5 {[%clk 0:00:40]}  Rxf1+ {[%clk 0:00:09]} 36. Bxf1 {[%clk 0:00:40]}  Rxb3 {[%clk 0:00:07]} 37. d6 {[%clk 0:00:40]}  Bf6 {[%clk 0:00:04]} 38. Re8+ {[%clk 0:00:36]}  Kg7 {[%clk 0:00:04]} 39. Bc4 {[%clk 0:00:36]}  Rb1+ {[%clk 0:00:04]} 40. Kh2 {[%clk 0:00:36]}  Rd1 {[%clk 0:00:05]} 41. Rg8+ {[%clk 0:00:35]}  Kh7 {[%clk 0:00:05]} 42. Ra8 {[%clk 0:00:27]}  Rxd6 {[%clk 0:00:06]} 43. Rxa5 {[%clk 0:00:27]}  Rc6 {[%clk 0:00:05]} 44. Kg3 {[%clk 0:00:24]}  Kg6 {[%clk 0:00:04]} 45. Kf3 {[%clk 0:00:24]}  Kf5 {[%clk 0:00:04]} 46. Bd3+ {[%clk 0:00:24]}  Ke6 {[%clk 0:00:04]} 47. Bc4+ {[%clk 0:00:24]}  Kd6 {[%clk 0:00:05]} 48. Ke4 {[%clk 0:00:24]}  Rb6 {[%clk 0:00:05]} 49. g4 {[%clk 0:00:23]}  Bg5 {[%clk 0:00:05]} 50. Ra8 {[%clk 0:00:21]}  Rb4 {[%clk 0:00:05]} 51. Ra6+ {[%clk 0:00:21]}  Kc7 {[%clk 0:00:06]} 52. Kd5 {[%clk 0:00:21]}  Be3 {[%clk 0:00:06]} 53. Rc6+ {[%clk 0:00:20]}  Kb7 {[%clk 0:00:06]} 54. Re6 {[%clk 0:00:19]}  Bd4 {[%clk 0:00:06]} 55. Rxh6 {[%clk 0:00:19]}  e4 {[%clk 0:00:06]} 56. Rh7+ {[%clk 0:00:19]}  Kc8 {[%clk 0:00:06]} 57. Re7 {[%clk 0:00:19]}  e3 {[%clk 0:00:06]} 58. g5 {[%clk 0:00:19]}  Rb6 {[%clk 0:00:06]} 59. h4 {[%clk 0:00:19]}  Kd8 {[%clk 0:00:06]} 60. Re4 {[%clk 0:00:18]}  Rb2 {[%clk 0:00:05]} 61. g6 {[%clk 0:00:16]}  Rg2 {[%clk 0:00:05]} 62. Re6 {[%clk 0:00:15]}  Kd7 {[%clk 0:00:04]} 63. Bb5+ {[%clk 0:00:15]}  Kd8 {[%clk 0:00:04]} 64. Kd6 {[%clk 0:00:14]}  Kc8 {[%clk 0:00:03]} 65. Bc6 {[%clk 0:00:13]}  Kb8 {[%clk 0:00:03]} 66. Bxg2 {[%clk 0:00:12]}  Ka7 {[%clk 0:00:04]} 67. Kd5 {[%clk 0:00:12]}  c4 {[%clk 0:00:03]} 68. Kxc4 {[%clk 0:00:12]}  Bb6 {[%clk 0:00:03]} 69. Kd3 {[%clk 0:00:12]}  e2 {[%clk 0:00:04]} 70. Kxe2 {[%clk 0:00:11]}  Ka6 {[%clk 0:00:05]} 71. g7 {[%clk 0:00:11]}  Ka5 {[%clk 0:00:05]} 72. g8=Q {[%clk 0:00:11]}  Ka6 {[%clk 0:00:06]} 73. Qg5 {[%clk 0:00:09]}  Ka7 {[%clk 0:00:06]} 74. Qb5 {[%clk 0:00:09]}  Kb8 {[%clk 0:00:06]} 75. Qxb6+ {[%clk 0:00:09]}  Kc8 {[%clk 0:00:07]} 76. Qc6+ {[%clk 0:00:10]}  Kb8 {[%clk 0:00:07]} 77. Qb7# {[%clk 0:00:09]} 1-0


[Site "https://www.chess.com"]

[Event "Titled Tuesday Blitz April 18 Early 2023"]
[White "Petrova, Irina"]
[Black "Han, Yichen"]
[WhiteFideId "14124122"]
[BlackFideId "1054430"]
[WhiteElo "2084"]
[BlackElo "2342"]
[Result "0-1"]
[Round "06"]
[TimeControl "180+2"]
[Date "2023.04.18"]
[WhiteClock "0:00:06"]
[BlackClock "0:00:02"]

1. e4 {[%clk 0:03:00]}  Nc6 {[%clk 0:02:55]} 2. Nf3 {[%clk 0:03:00]}  d6 {[%clk 0:02:45]} 3. d4 {[%clk 0:02:57]}  Bg4 {[%clk 0:02:30]} 4. c3 {[%clk 0:02:57]}  Nf6 {[%clk 0:02:26]} 5. Bd3 {[%clk 0:02:53]}  e5 {[%clk 0:02:21]} 6. d5 {[%clk 0:02:51]}  Ne7 {[%clk 0:02:11]} 7. Be3 {[%clk 0:02:51]}  Ng6 {[%clk 0:02:08]} 8. O-O {[%clk 0:02:34]}  Nh4 {[%clk 0:01:56]} 9. Nbd2 {[%clk 0:02:31]}  Be7 {[%clk 0:01:51]} 10. Bb5+ {[%clk 0:02:25]}  Nd7 {[%clk 0:01:48]} 11. Qa4 {[%clk 0:02:11]}  Nxf3+ {[%clk 0:01:41]} 12. Nxf3 {[%clk 0:02:11]}  a6 {[%clk 0:01:26]} 13. Be2 {[%clk 0:02:08]}  O-O {[%clk 0:01:25]} 14. Qd1 {[%clk 0:02:01]}  f5 {[%clk 0:01:15]} 15. exf5 {[%clk 0:02:00]}  Bxf5 {[%clk 0:01:16]} 16. Nd2 {[%clk 0:01:58]}  Nf6 {[%clk 0:01:15]} 17. c4 {[%clk 0:01:55]}  b5 {[%clk 0:01:14]} 18. cxb5 {[%clk 0:01:51]}  axb5 {[%clk 0:01:15]} 19. Bxb5 {[%clk 0:01:51]}  Rb8 {[%clk 0:01:12]} 20. a4 {[%clk 0:01:49]}  Nxd5 {[%clk 0:01:06]} 21. Bc4 {[%clk 0:01:47]}  c6 {[%clk 0:01:02]} 22. a5 {[%clk 0:01:32]}  Kh8 {[%clk 0:00:55]} 23. Bxd5 {[%clk 0:01:30]}  cxd5 {[%clk 0:00:56]} 24. Bb6 {[%clk 0:01:31]}  Rxb6 {[%clk 0:00:45]} 25. axb6 {[%clk 0:01:32]}  Qxb6 {[%clk 0:00:46]} 26. Nf3 {[%clk 0:01:19]}  d4 {[%clk 0:00:38]} 27. Qa4 {[%clk 0:01:00]}  Qxb2 {[%clk 0:00:27]} 28. Qa7 {[%clk 0:01:00]}  Bf6 {[%clk 0:00:20]} 29. Qc7 {[%clk 0:00:56]}  e4 {[%clk 0:00:17]} 30. Qxd6 {[%clk 0:00:50]}  Rd8 {[%clk 0:00:11]} 31. Ne5 {[%clk 0:00:27]}  Qb3 {[%clk 0:00:03]} 32. Qc5 {[%clk 0:00:20]}  Qe6 {[%clk 0:00:03]} 33. Nc6 {[%clk 0:00:19]}  Rg8 {[%clk 0:00:02]} 34. Ra6 {[%clk 0:00:17]}  d3 {[%clk 0:00:02]} 35. Nb4 {[%clk 0:00:15]}  Qd7 {[%clk 0:00:02]} 36. Ra7 {[%clk 0:00:11]}  Qc8 {[%clk 0:00:02]} 37. Qxc8 {[%clk 0:00:10]}  Bxc8 {[%clk 0:00:03]} 38. Nd5 {[%clk 0:00:08]}  Bd4 {[%clk 0:00:02]} 39. Re1 {[%clk 0:00:06]}  Bxa7 {[%clk 0:00:02]} 40. Ne7 {[%clk 0:00:06]}  Rf8 {[%clk 0:00:02]} 0-1


[Site "https://www.chess.com"]

[Event "Titled Tuesday Blitz April 18 Early 2023"]
[White "Sowul, Bartosz"]
[Black "Gonzalez Zamora, Juan Carlos"]
[WhiteFideId "1137590"]
[BlackFideId "3507548"]
[WhiteElo "2188"]
[BlackElo "2535"]
[Result "1-0"]
[Round "06"]
[TimeControl "180+2"]
[Date "2023.04.18"]
[WhiteClock "0:00:06"]
[BlackClock "0:00:13"]

1. e4 {[%clk 0:03:00]}  d6 {[%clk 0:03:00]} 2. d4 {[%clk 0:03:00]}  Nf6 {[%clk 0:03:00]} 3. Nc3 {[%clk 0:03:01]}  g6 {[%clk 0:03:00]} 4. Be3 {[%clk 0:03:01]}  Bg7 {[%clk 0:03:00]} 5. Qd2 {[%clk 0:03:01]}  a6 {[%clk 0:03:00]} 6. Nf3 {[%clk 0:03:01]}  Nbd7 {[%clk 0:02:57]} 7. Bd3 {[%clk 0:02:46]}  e5 {[%clk 0:02:56]} 8. d5 {[%clk 0:02:34]}  b5 {[%clk 0:02:54]} 9. Bh6 {[%clk 0:02:32]}  O-O {[%clk 0:02:54]} 10. h4 {[%clk 0:02:29]}  Nc5 {[%clk 0:02:53]} 11. a3 {[%clk 0:02:12]}  Bb7 {[%clk 0:02:04]} 12. h5 {[%clk 0:01:59]}  Nxh5 {[%clk 0:02:04]} 13. g4 {[%clk 0:01:45]}  Nf4 {[%clk 0:02:03]} 14. Bxf4 {[%clk 0:01:27]}  exf4 {[%clk 0:02:04]} 15. Qxf4 {[%clk 0:01:28]}  Qf6 {[%clk 0:01:44]} 16. Qg3 {[%clk 0:01:14]}  g5 {[%clk 0:01:32]} 17. e5 {[%clk 0:00:51]}  Nxd3+ {[%clk 0:01:29]} 18. cxd3 {[%clk 0:00:52]}  Qg6 {[%clk 0:01:09]} 19. O-O-O {[%clk 0:00:43]}  dxe5 {[%clk 0:01:00]} 20. Rh5 {[%clk 0:00:39]}  h6 {[%clk 0:00:57]} 21. Nxe5 {[%clk 0:00:35]}  Qd6 {[%clk 0:00:55]} 22. d4 {[%clk 0:00:33]}  Rae8 {[%clk 0:00:50]} 23. Rdh1 {[%clk 0:00:30]}  Bxd5 {[%clk 0:00:42]} 24. f3 {[%clk 0:00:19]}  Bb7 {[%clk 0:00:40]} 25. Qh3 {[%clk 0:00:10]}  Qxd4 {[%clk 0:00:37]} 26. Rxh6 {[%clk 0:00:06]}  Qe3+ {[%clk 0:00:18]} 27. Kb1 {[%clk 0:00:06]}  Bxe5 {[%clk 0:00:13]} 28. Rh8+ {[%clk 0:00:05]}  Kg7 {[%clk 0:00:13]} 29. Qh6# {[%clk 0:00:06]} 1-0


[Site "https://www.chess.com"]

[Event "Titled Tuesday Blitz April 18 Early 2023"]
[White "Omelja, Artem"]
[Black "Koridze, Lile"]
[WhiteFideId "14119846"]
[BlackFideId "13612514"]
[WhiteElo "2404"]
[BlackElo "2047"]
[Result "1-0"]
[Round "06"]
[TimeControl "180+2"]
[Date "2023.04.18"]
[WhiteClock "0:00:03"]
[BlackClock "0:00:02"]

1. d4 {[%clk 0:02:59]}  Nf6 {[%clk 0:03:00]} 2. c4 {[%clk 0:02:52]}  e6 {[%clk 0:02:59]} 3. Nf3 {[%clk 0:02:52]}  d5 {[%clk 0:02:58]} 4. Nc3 {[%clk 0:02:51]}  Bb4 {[%clk 0:02:58]} 5. cxd5 {[%clk 0:02:49]}  exd5 {[%clk 0:02:58]} 6. Qa4+ {[%clk 0:02:49]}  Nc6 {[%clk 0:02:57]} 7. Bg5 {[%clk 0:02:49]}  O-O {[%clk 0:02:55]} 8. e3 {[%clk 0:02:48]}  h6 {[%clk 0:02:54]} 9. Bh4 {[%clk 0:02:47]}  g5 {[%clk 0:02:37]} 10. Bg3 {[%clk 0:02:46]}  Ne4 {[%clk 0:02:37]} 11. Qc2 {[%clk 0:02:42]}  Bf5 {[%clk 0:02:35]} 12. Bd3 {[%clk 0:02:41]}  Qd7 {[%clk 0:02:24]} 13. O-O {[%clk 0:02:36]}  Rae8 {[%clk 0:02:23]} 14. a3 {[%clk 0:02:28]}  Bxc3 {[%clk 0:02:07]} 15. bxc3 {[%clk 0:02:25]}  Nxg3 {[%clk 0:02:03]} 16. hxg3 {[%clk 0:02:24]}  Be4 {[%clk 0:02:03]} 17. c4 {[%clk 0:02:15]}  Bxd3 {[%clk 0:01:23]} 18. Qxd3 {[%clk 0:02:14]}  Kg7 {[%clk 0:01:20]} 19. Rab1 {[%clk 0:02:11]}  b6 {[%clk 0:01:20]} 20. cxd5 {[%clk 0:02:05]}  Qxd5 {[%clk 0:01:20]} 21. Rfc1 {[%clk 0:02:05]}  Qd6 {[%clk 0:01:18]} 22. Qc3 {[%clk 0:02:03]}  Ne7 {[%clk 0:01:14]} 23. Qxc7 {[%clk 0:01:53]}  Qxa3 {[%clk 0:01:13]} 24. Ra1 {[%clk 0:01:51]}  Qb2 {[%clk 0:01:13]} 25. Rcb1 {[%clk 0:01:43]}  Qe2 {[%clk 0:01:11]} 26. Rxa7 {[%clk 0:01:27]}  Nd5 {[%clk 0:00:59]} 27. Qc6 {[%clk 0:01:13]}  Ne7 {[%clk 0:00:46]} 28. Qb5 {[%clk 0:01:07]}  Qc2 {[%clk 0:00:33]} 29. Qb2 {[%clk 0:00:59]}  Qe4 {[%clk 0:00:26]} 30. Nd2 {[%clk 0:00:53]}  Qd3 {[%clk 0:00:25]} 31. Ra3 {[%clk 0:00:52]}  Qf5 {[%clk 0:00:23]} 32. Nc4 {[%clk 0:00:47]}  Rd8 {[%clk 0:00:16]} 33. d5+ {[%clk 0:00:36]}  Kg8 {[%clk 0:00:16]} 34. d6 {[%clk 0:00:36]}  Nd5 {[%clk 0:00:15]} 35. Rd1 {[%clk 0:00:33]}  Nf6 {[%clk 0:00:10]} 36. Rb3 {[%clk 0:00:22]}  Ne4 {[%clk 0:00:10]} 37. Rb5 {[%clk 0:00:21]}  Qe6 {[%clk 0:00:07]} 38. Qd4 {[%clk 0:00:19]}  Rc8 {[%clk 0:00:04]} 39. Nxb6 {[%clk 0:00:11]}  Rc2 {[%clk 0:00:03]} 40. Re5 {[%clk 0:00:06]}  Qxd6 {[%clk 0:00:01]} 41. Qxd6 {[%clk 0:00:04]}  Nxd6 {[%clk 0:00:02]} 42. Rxd6 {[%clk 0:00:05]}  Rb8 {[%clk 0:00:02]} 43. g4 {[%clk 0:00:03]}  Rb2 {[%clk 0:00:01]} 44. Nd5 {[%clk 0:00:03]}  Rc8 {[%clk 0:00:01]} 45. Kh2 {[%clk 0:00:01]}  Rcc2 {[%clk 0:00:01]} 46. Kg3 {[%clk 0:00:02]}  Rxf2 {[%clk 0:00:02]} 47. Ne7+ {[%clk 0:00:02]}  Kg7 {[%clk 0:00:02]} 48. Nf5+ {[%clk 0:00:02]}  Kh7 {[%clk 0:00:02]} 49. Rxh6+ {[%clk 0:00:02]}  Kg8 {[%clk 0:00:02]} 50. Re8# {[%clk 0:00:03]} 1-0


[Site "https://www.chess.com"]

[Event "Titled Tuesday Blitz April 18 Early 2023"]
[White "Degenbaev, Aziz"]
[Black "Leve, Nitai"]
[WhiteFideId "13802640"]
[BlackFideId "2006898"]
[WhiteElo "2152"]
[BlackElo "2144"]
[Result "1/2-1/2"]
[Round "06"]
[TimeControl "180+2"]
[Date "2023.04.18"]
[WhiteClock "0:00:22"]
[BlackClock "0:00:25"]

1. e4 {[%clk 0:03:00]}  d5 {[%clk 0:02:58]} 2. exd5 {[%clk 0:03:00]}  Nf6 {[%clk 0:02:58]} 3. Nf3 {[%clk 0:02:54]}  Bg4 {[%clk 0:02:57]} 4. d4 {[%clk 0:02:46]}  Qxd5 {[%clk 0:02:55]} 5. Be2 {[%clk 0:02:45]}  Nc6 {[%clk 0:02:53]} 6. c4 {[%clk 0:02:45]}  Qh5 {[%clk 0:02:52]} 7. Nc3 {[%clk 0:02:40]}  O-O-O {[%clk 0:02:52]} 8. Be3 {[%clk 0:02:40]}  e5 {[%clk 0:02:52]} 9. d5 {[%clk 0:02:40]}  e4 {[%clk 0:02:44]} 10. Nd2 {[%clk 0:02:36]}  Ne5 {[%clk 0:02:42]} 11. Ndxe4 {[%clk 0:02:29]}  Nxe4 {[%clk 0:02:41]} 12. Nxe4 {[%clk 0:02:29]}  Bb4+ {[%clk 0:02:35]} 13. Nd2 {[%clk 0:02:19]}  Bxe2 {[%clk 0:02:22]} 14. Qxe2 {[%clk 0:02:19]}  Bxd2+ {[%clk 0:02:20]} 15. Kxd2 {[%clk 0:01:58]}  Qxe2+ {[%clk 0:02:20]} 16. Kxe2 {[%clk 0:01:58]}  Nxc4 {[%clk 0:02:21]} 17. Rhd1 {[%clk 0:01:54]}  Rhe8 {[%clk 0:02:10]} 18. Rd4 {[%clk 0:01:51]}  Nxe3 {[%clk 0:02:06]} 19. fxe3 {[%clk 0:01:51]}  Re5 {[%clk 0:02:04]} 20. Rad1 {[%clk 0:01:50]}  f5 {[%clk 0:02:03]} 21. Kf3 {[%clk 0:01:45]}  g5 {[%clk 0:02:01]} 22. h3 {[%clk 0:01:45]}  h5 {[%clk 0:01:58]} 23. d6 {[%clk 0:01:45]}  cxd6 {[%clk 0:01:52]} 24. Rxd6 {[%clk 0:01:44]}  Rde8 {[%clk 0:01:53]} 25. Rc1+ {[%clk 0:01:42]}  Kb8 {[%clk 0:01:53]} 26. Rc3 {[%clk 0:01:42]}  g4+ {[%clk 0:01:47]} 27. hxg4 {[%clk 0:01:42]}  hxg4+ {[%clk 0:01:46]} 28. Kf2 {[%clk 0:01:38]}  a6 {[%clk 0:01:31]} 29. Rd7 {[%clk 0:01:33]}  Rc8 {[%clk 0:01:06]} 30. Rxc8+ {[%clk 0:01:08]}  Kxc8 {[%clk 0:01:07]} 31. Rf7 {[%clk 0:01:08]}  b5 {[%clk 0:01:05]} 32. b4 {[%clk 0:00:44]}  Re4 {[%clk 0:00:55]} 33. a3 {[%clk 0:00:43]}  Re5 {[%clk 0:00:52]} 34. Ke2 {[%clk 0:00:40]}  Kb8 {[%clk 0:00:52]} 35. Kd3 {[%clk 0:00:39]}  Rd5+ {[%clk 0:00:50]} 36. Kc3 {[%clk 0:00:39]}  Re5 {[%clk 0:00:51]} 37. Kd4 {[%clk 0:00:39]}  Re4+ {[%clk 0:00:50]} 38. Kd3 {[%clk 0:00:35]}  Re5 {[%clk 0:00:49]} 39. g3 {[%clk 0:00:34]}  Ka8 {[%clk 0:00:49]} 40. Kd4 {[%clk 0:00:19]}  Re4+ {[%clk 0:00:43]} 41. Kc5 {[%clk 0:00:19]}  Rxe3 {[%clk 0:00:41]} 42. Rxf5 {[%clk 0:00:20]}  Kb7 {[%clk 0:00:18]} 43. Rf7+ {[%clk 0:00:20]}  Kc8 {[%clk 0:00:18]} 44. Kc6 {[%clk 0:00:16]}  Kd8 {[%clk 0:00:18]} 45. Rg7 {[%clk 0:00:13]}  Rxg3 {[%clk 0:00:17]} 46. Kb6 {[%clk 0:00:14]}  Rxa3 {[%clk 0:00:14]} 47. Rxg4 {[%clk 0:00:14]}  Kd7 {[%clk 0:00:14]} 48. Rg6 {[%clk 0:00:13]}  Ra1 {[%clk 0:00:14]} 49. Kc5 {[%clk 0:00:12]}  a5 {[%clk 0:00:14]} 50. Kxb5 {[%clk 0:00:12]}  axb4 {[%clk 0:00:14]} 51. Kxb4 {[%clk 0:00:12]}  Rf1 {[%clk 0:00:14]} 52. Kc4 {[%clk 0:00:13]}  Rc1+ {[%clk 0:00:14]} 53. Kd5 {[%clk 0:00:13]}  Rd1+ {[%clk 0:00:14]} 54. Ke4 {[%clk 0:00:14]}  Re1+ {[%clk 0:00:15]} 55. Kf3 {[%clk 0:00:14]}  Re6 {[%clk 0:00:14]} 56. Rg5 {[%clk 0:00:14]}  Re8 {[%clk 0:00:14]} 57. Ra5 {[%clk 0:00:14]}  Rf8+ {[%clk 0:00:14]} 58. Ke4 {[%clk 0:00:15]}  Kc6 {[%clk 0:00:15]} 59. Kd4 {[%clk 0:00:15]}  Rf4+ {[%clk 0:00:14]} 60. Ke5 {[%clk 0:00:15]}  Rh4 {[%clk 0:00:15]} 61. Ra6+ {[%clk 0:00:15]}  Kb5 {[%clk 0:00:16]} 62. Ra8 {[%clk 0:00:16]}  Rh5+ {[%clk 0:00:16]} 63. Kd4 {[%clk 0:00:16]}  Rh4+ {[%clk 0:00:16]} 64. Ke3 {[%clk 0:00:17]}  Rh3+ {[%clk 0:00:17]} 65. Kf4 {[%clk 0:00:17]}  Rh4+ {[%clk 0:00:17]} 66. Kg5 {[%clk 0:00:18]}  Ra4 {[%clk 0:00:17]} 67. Rb8+ {[%clk 0:00:18]}  Kc4 {[%clk 0:00:17]} 68. Kf4 {[%clk 0:00:17]}  Kc5+ {[%clk 0:00:17]} 69. Ke5 {[%clk 0:00:17]}  Kc6 {[%clk 0:00:17]} 70. Rc8+ {[%clk 0:00:16]}  Kd7 {[%clk 0:00:17]} 71. Rc5 {[%clk 0:00:17]}  Ra1 {[%clk 0:00:17]} 72. Rd5+ {[%clk 0:00:17]}  Ke7 {[%clk 0:00:18]} 73. Rd3 {[%clk 0:00:16]}  Re1+ {[%clk 0:00:18]} 74. Kd5 {[%clk 0:00:17]}  Rh1 {[%clk 0:00:17]} 75. Re3+ {[%clk 0:00:17]}  Kd7 {[%clk 0:00:16]} 76. Rg3 {[%clk 0:00:17]}  Rh5+ {[%clk 0:00:16]} 77. Ke4 {[%clk 0:00:17]}  Rh4+ {[%clk 0:00:16]} 78. Kf5 {[%clk 0:00:18]}  Ra4 {[%clk 0:00:17]} 79. Rg7+ {[%clk 0:00:17]}  Kd6 {[%clk 0:00:18]} 80. Rg6+ {[%clk 0:00:18]}  Kd7 {[%clk 0:00:18]} 81. Rb6 {[%clk 0:00:19]}  Ra5+ {[%clk 0:00:18]} 82. Kf6 {[%clk 0:00:19]}  Ra1 {[%clk 0:00:18]} 83. Rb7+ {[%clk 0:00:20]}  Kc6 {[%clk 0:00:19]} 84. Rb2 {[%clk 0:00:19]}  Rf1+ {[%clk 0:00:19]} 85. Ke5 {[%clk 0:00:20]}  Re1+ {[%clk 0:00:20]} 86. Kd4 {[%clk 0:00:20]}  Rd1+ {[%clk 0:00:20]} 87. Kc4 {[%clk 0:00:21]}  Rc1+ {[%clk 0:00:20]} 88. Kb3 {[%clk 0:00:21]}  Rh1 {[%clk 0:00:21]} 89. Rc2+ {[%clk 0:00:21]}  Kd6 {[%clk 0:00:22]} 90. Rc3 {[%clk 0:00:21]}  Rh5 {[%clk 0:00:21]} 91. Rg3 {[%clk 0:00:21]}  Rb5+ {[%clk 0:00:21]} 92. Kc3 {[%clk 0:00:21]}  Rb8 {[%clk 0:00:22]} 93. Rg6+ {[%clk 0:00:20]}  Ke5 {[%clk 0:00:23]} 94. Rg5+ {[%clk 0:00:20]}  Ke4 {[%clk 0:00:23]} 95. Rg1 {[%clk 0:00:21]}  Rc8+ {[%clk 0:00:23]} 96. Kb4 {[%clk 0:00:21]}  Rb8+ {[%clk 0:00:23]} 97. Kc5 {[%clk 0:00:22]}  Rc8+ {[%clk 0:00:24]} 98. Kd6 {[%clk 0:00:23]}  Rd8+ {[%clk 0:00:24]} 99. Ke7 {[%clk 0:00:23]}  Rd2 {[%clk 0:00:25]} 100. Re1+ {[%clk 0:00:23]}  Kd3 {[%clk 0:00:25]} 101. Kd6 {[%clk 0:00:22]} 1/2-1/2


[Site "https://www.chess.com"]

[Event "Titled Tuesday Blitz April 18 Early 2023"]
[White "Ansh M Shah"]
[Black "Garv Gaur"]
[WhiteFideId "25033379"]
[BlackFideId "45030839"]
[WhiteElo "2084"]
[BlackElo "2068"]
[Result "0-1"]
[Round "06"]
[TimeControl "180+2"]
[Date "2023.04.18"]
[WhiteClock "0:00:21"]
[BlackClock "0:01:38"]

1. d4 {[%clk 0:02:59]}  Nf6 {[%clk 0:02:59]} 2. c4 {[%clk 0:03:00]}  e6 {[%clk 0:02:59]} 3. g3 {[%clk 0:03:00]}  b6 {[%clk 0:02:59]} 4. Bg2 {[%clk 0:03:01]}  c6 {[%clk 0:02:58]} 5. Nf3 {[%clk 0:03:01]}  Ba6 {[%clk 0:02:58]} 6. Nc3 {[%clk 0:03:01]}  Bxc4 {[%clk 0:02:57]} 7. Ne5 {[%clk 0:03:02]}  Ba6 {[%clk 0:02:56]} 8. Bf4 {[%clk 0:03:01]}  d5 {[%clk 0:02:53]} 9. Qa4 {[%clk 0:03:00]}  Bb7 {[%clk 0:02:52]} 10. Rc1 {[%clk 0:02:57]}  Bd6 {[%clk 0:02:50]} 11. O-O {[%clk 0:02:56]}  O-O {[%clk 0:02:50]} 12. e4 {[%clk 0:02:54]}  Nh5 {[%clk 0:02:23]} 13. Be3 {[%clk 0:02:29]}  Nf6 {[%clk 0:02:22]} 14. Nxf7 {[%clk 0:02:21]}  Rxf7 {[%clk 0:02:18]} 15. e5 {[%clk 0:02:22]}  Bxe5 {[%clk 0:02:18]} 16. dxe5 {[%clk 0:02:23]}  Nfd7 {[%clk 0:02:16]} 17. f4 {[%clk 0:02:21]}  a5 {[%clk 0:02:09]} 18. Bh3 {[%clk 0:02:16]}  Qe7 {[%clk 0:02:09]} 19. a3 {[%clk 0:02:02]}  c5 {[%clk 0:02:02]} 20. Nb5 {[%clk 0:01:55]}  Bc6 {[%clk 0:02:01]} 21. Rfe1 {[%clk 0:00:55]}  Na6 {[%clk 0:01:59]} 22. Bf1 {[%clk 0:00:55]}  Nc7 {[%clk 0:01:57]} 23. Qb3 {[%clk 0:00:45]}  c4 {[%clk 0:01:47]} 24. Nxc7 {[%clk 0:00:45]}  cxb3 {[%clk 0:01:47]} 25. Rxc6 {[%clk 0:00:45]}  Rc8 {[%clk 0:01:45]} 26. Rec1 {[%clk 0:00:36]}  Nc5 {[%clk 0:01:38]} 27. Bxc5 {[%clk 0:00:26]}  bxc5 {[%clk 0:01:39]} 28. R1xc5 {[%clk 0:00:25]}  Rxc7 {[%clk 0:01:37]} 29. Rxc7 {[%clk 0:00:23]}  Qxc7 {[%clk 0:01:38]} 30. Rxc7 {[%clk 0:00:23]}  Rxc7 {[%clk 0:01:39]} 31. Bd3 {[%clk 0:00:21]}  Rc2 {[%clk 0:01:38]} 0-1


[Site "https://www.chess.com"]